bitfinex/quotes_BTCUSD_20241229
["timestamp","ask_amount","ask_price","bid_price","bid_amount"]
[1735477952297,0.60317878,95177.0,95176.0,0.0041708]
[1735477952742,0.61966527,95177.0,95176.0,0.0041708]
[1735477953786,0.60317878,95177.0,95176.0,0.0041708]
[1735477954058,0.60374006,95177.0,95176.0,0.0041708]
[1735477956727,0.62022657,95177.0,95176.0,0.0041708]
[1735477962144,0.62022657,95177.0,95176.0,0.0031708]
[1735477962295,0.62022657,95177.0,95176.0,0.0001708]
[1735477962715,0.62022657,95177.0,95176.0,0.0021708]
[1735477963581,0.62022657,95177.0,95176.0,0.0031708]
[1735477963787,0.60374006,95177.0,95176.0,0.0011708]
[1735477964093,0.88728253,95177.0,95176.0,0.0021708]
[1735477964495,0.28928253,95177.0,95176.0,0.0031708]
[1735477964718,4.07428253,95177.0,95176.0,0.0031708]
[1735477965099,3.79074006,95177.0,95176.0,0.0031708]
[1735477965419,3.81051531,95177.0,95176.0,0.0031708]
[1735477965758,3.81051531,95177.0,95176.0,0.0011708]
[1735477966165,3.78451531,95177.0,95176.0,0.0021708]
[1735477966365,3.76651531,95177.0,95176.0,0.0021708]
[1735477966564,3.74151531,95177.0,95176.0,0.0011708]
[1735477971228,3.69851531,95177.0,95176.0,0.0011708]
[1735477972102,3.40851531,95177.0,95176.0,0.0011708]
[1735477972284,1.06151531,95177.0,95176.0,0.0011708]
[1735477972800,1.04174006,95177.0,95176.0,0.0011708]
[1735477972964,0.96574006,95177.0,95176.0,0.0011708]
[1735477973307,1.2495081,95177.0,95176.0,0.0011708]
[1735477976599,0.96574006,95177.0,95176.0,0.0011708]
[1735477977097,0.98222676,95177.0,95176.0,0.0011708]
[1735477983346,1.13531951,95177.0,95176.0,0.0011708]
[1735477983576,1.11883281,95177.0,95176.0,0.0011708]
[1735477983965,1.11883281,95177.0,95176.0,0.00058463]
[1735477984496,1.11883281,95177.0,95169.0,0.0001708]
[1735477984698,0.0499,95170.0,95169.0,0.0001708]
[1735477984911,5.004789,95170.0,95169.0,0.0001708]
[1735477985114,5.03853094,95170.0,95169.0,0.0001708]
[1735477986715,5.04353094,95170.0,95169.0,0.0001708]
[1735477987117,5.06001981,95170.0,95169.0,0.0001708]
[1735477987920,5.05501981,95170.0,95169.0,0.0001708]
[1735477988317,5.05901981,95170.0,95169.0,0.0001708]
[1735477988525,5.06801981,95170.0,95169.0,0.0001708]
[1735477988720,5.08056864,95170.0,95169.0,0.0001708]
[1735477988951,5.05501981,95170.0,95169.0,0.0001708]
[1735477989145,5.05701981,95170.0,95169.0,0.0001708]
[1735477989351,5.06301981,95170.0,95169.0,0.0001708]
[1735477993796,5.04653094,95170.0,95169.0,0.0001708]
[1735477997539,5.06301979,95170.0,95169.0,0.0001708]
[1735477999824,0.18323079,95170.0,95169.0,0.0001708]
[1735478000231,5.06301979,95170.0,95169.0,0.0001708]
[1735478001134,5.03492704,95170.0,95169.0,0.0001708]
[1735478003352,5.01843819,95170.0,95169.0,0.0001708]
[1735478007146,5.03492702,95170.0,95169.0,0.0001708]
[1735478008161,5.06301977,95170.0,95169.0,0.0001708]
[1735478012803,5.03492702,95170.0,95169.0,0.0001708]
[1735478013204,4.90992702,95170.0,95169.0,0.0001708]
[1735478013631,4.89343819,95170.0,95169.0,0.0001708]
[1735478013845,4.89343819,95170.0,95169.0,8.579e-05]
[1735478014475,0.19684919,95170.0,95169.0,8.579e-05]
[1735478014681,5.10473094,95170.0,95169.0,8.579e-05]
[1735478015455,5.12451056,95170.0,95169.0,8.579e-05]
[1735478015600,5.09641781,95170.0,95169.0,8.579e-05]
[1735478016756,5.11290681,95170.0,95169.0,8.579e-05]
[1735478022003,5.11290681,95170.0,95164.0,0.00012833]
[1735478022199,4.64196969,95169.0,95164.0,0.00012833]
[1735478022534,4.64755226,95168.0,95164.0,0.00012833]
[1735478022721,4.64197,95167.0,95164.0,0.00012833]
[1735478022930,4.64197,95166.0,95164.0,0.00012833]
[1735478023103,4.64197,95165.0,95164.0,0.00012833]
[1735478023305,4.92567626,95165.0,95164.0,0.00012833]
[1735478025118,4.64397,95165.0,95164.0,0.00012833]
[1735478025840,4.64797,95165.0,95164.0,0.00012833]
[1735478026041,4.65174696,95165.0,95164.0,0.00012833]
[1735478027013,4.66823618,95165.0,95164.0,0.00012833]
[1735478030527,0.19726618,95165.0,95164.0,0.12402833]
[1735478030799,0.02626618,95165.0,95164.0,0.15525569]
[1735478031156,0.02248922,95165.0,95164.0,0.15525569]
[1735478031496,0.02048922,95165.0,95164.0,0.15525569]
[1735478031693,0.01648922,95165.0,95164.0,0.15525569]
[1735478031894,0.01648922,95165.0,95164.0,0.1411339]
[1735478032300,0.01648922,95165.0,95164.0,0.1421339]
[1735478032641,0.01748922,95165.0,95164.0,0.1421339]
[1735478033044,0.02229313,95165.0,95164.0,0.1421339]
[1735478033564,0.00580391,95165.0,95164.0,0.1421339]
[1735478033779,0.001,95165.0,95164.0,0.1411339]
[1735478034000,0.001,95165.0,95164.0,0.1421339]
[1735478034778,0.00580412,95165.0,95164.0,0.1421339]
[1735478035279,0.00580412,95165.0,95164.0,0.1411339]
[1735478035505,0.00480412,95165.0,95164.0,0.24512022]
[1735478035751,0.00480412,95165.0,95164.0,0.24612022]
[1735478036225,0.001,95165.0,95164.0,0.24612022]
[1735478036413,8.54e-05,95169.0,95164.0,0.28074064]
[1735478036583,8.54e-05,95169.0,95165.0,0.22788632]
[1735478036787,8.54e-05,95169.0,95166.0,0.0456]
[1735478036952,0.01648485,95168.0,95166.0,0.14958632]
[1735478037149,0.01648485,95168.0,95167.0,0.0456]
[1735478037353,0.01648485,95168.0,95167.0,0.08295803]
[1735478038623,0.01748485,95168.0,95167.0,0.08895803]
[1735478039052,0.01748485,95168.0,95167.0,0.09000866]
[1735478039751,0.01848485,95168.0,95167.0,0.17430866]
[1735478042659,0.01848485,95168.0,95167.0,0.13695063]
[1735478042960,0.01848485,95168.0,95167.0,0.15300557]
[1735478043877,0.002,95168.0,95167.0,0.15300557]
[1735478047362,0.002,95168.0,95167.0,0.15796557]
[1735478048336,0.01848525,95168.0,95167.0,0.15796557]
[1735478049267,0.01857065,95168.0,95167.0,0.15796557]
[1735478049724,0.01857065,95168.0,95167.0,0.15901621]
[1735478050555,0.01857065,95168.0,95167.0,0.17495614]
[1735478051602,4.81339641,95180.0,95167.0,0.17495614]
[1735478051773,4.81344728,95180.0,95168.0,0.00105062]
[1735478051972,0.00495447,95179.0,95169.0,0.0010506]
[1735478052201,0.00495447,95179.0,95170.0,0.00105058]
[1735478052407,0.00495447,95179.0,95171.0,0.01857608]
[1735478052538,0.01648493,95177.0,95171.0,0.01857608]
[1735478052720,0.01648493,95177.0,95171.0,0.01752552]
[1735478053681,0.00595447,95179.0,95171.0,0.01752552]
[1735478053887,0.00495447,95179.0,95171.0,0.01857603]
[1735478054223,0.001,95177.0,95171.0,0.00205051]
[1735478054735,0.002,95177.0,95171.0,0.00705051]
[1735478054937,0.002,95177.0,95171.0,0.006]
[1735478055133,0.001,95177.0,95171.0,0.001]
[1735478055450,0.001,95177.0,95171.0,0.006]
[1735478055644,0.0038343,95176.0,95171.0,0.005]
[1735478056028,0.0021135,95179.0,95172.0,0.0152187]
[1735478056210,0.00495575,95175.0,95172.0,0.0152187]
[1735478056413,4.81344728,95180.0,95171.0,0.005]
[1735478056611,0.00112588,95174.0,95171.0,0.008]
[1735478056809,0.001,95177.0,95168.0,0.00105063]
[1735478057024,0.00112809,95173.0,95171.0,0.004]
[1735478057254,0.01439932,95178.0,95172.0,0.003]
[1735478057255,0.001,95176.0,95172.0,0.003]
[1735478057568,0.00112367,95175.0,95172.0,0.0154187]
[1735478058035,0.001,95177.0,95172.0,0.0154187]
[1735478058205,0.00112588,95174.0,95168.0,0.00505063]
[1735478058365,0.01439932,95178.0,95177.0,0.01710557]
[1735478058749,0.01439932,95178.0,95177.0,0.01610557]
[1735478058955,0.01439932,95178.0,95177.0,0.01510557]
[1735478059150,0.01823093,95178.0,95177.0,0.01510557]
[1735478059562,0.01923093,95178.0,95177.0,0.01710557]
[1735478059988,0.01823093,95178.0,95177.0,0.01510557]
[1735478060211,0.01923093,95178.0,95177.0,0.01710557]
[1735478060615,0.02023093,95178.0,95177.0,0.02110557]
[1735478061284,0.01923093,95178.0,95177.0,0.01710557]
[1735478062056,0.01923093,95178.0,95177.0,0.02110557]
[1735478062682,0.02035717,95178.0,95177.0,0.02110557]
[1735478063751,0.00595785,95178.0,95177.0,0.02110557]
[1735478067007,0.00495785,95178.0,95177.0,0.01910557]
[1735478067590,0.00495785,95178.0,95177.0,0.01510557]
[1735478067905,0.00495785,95178.0,95177.0,0.01710557]
[1735478068300,0.00495785,95178.0,95177.0,0.01510557]
[1735478068301,0.02144293,95178.0,95177.0,0.01510557]
[1735478068506,0.02244293,95178.0,95177.0,0.01810557]
[1735478068708,0.02244293,95178.0,95177.0,0.02010557]
[1735478068908,0.02144293,95178.0,95177.0,0.01710557]
[1735478069103,0.02144293,95178.0,95177.0,0.02010557]
[1735478069325,0.02244293,95178.0,95177.0,0.02010557]
[1735478069534,0.02244293,95178.0,95177.0,0.005]
[1735478072639,4.69772785,95178.0,95177.0,0.005]
[1735478074119,4.69781325,95178.0,95177.0,0.005]
[1735478074602,4.93451229,95178.0,95177.0,0.005]
[1735478075472,4.69781325,95178.0,95177.0,0.005]
[1735478076074,4.71429962,95178.0,95177.0,0.005]
[1735478076304,3.93132962,95178.0,95177.0,0.005]
[1735478076939,3.81332962,95178.0,95177.0,0.005]
[1735478077079,3.79684325,95178.0,95177.0,0.005]
[1735478077771,4.0230465,95178.0,95177.0,0.005]
[1735478078824,4.0230465,95178.0,95177.0,0.003]
[1735478079009,4.0220465,95178.0,95171.0,0.0001708]
[1735478079209,3.677,95177.0,95171.0,0.0001708]
[1735478079614,0.28914137,95176.0,95171.0,0.0001708]
[1735478079815,3.676,95175.0,95171.0,0.0001708]
[1735478080034,3.69248641,95175.0,95171.0,0.0001708]
[1735478080235,3.231,95174.0,95171.0,0.0001708]
[1735478080554,3.231,95174.0,95171.0,0.0031708]
[1735478080791,3.04,95173.0,95171.0,0.0021708]
[1735478081000,3.029,95174.0,95171.0,0.0021708]
[1735478081158,2.638,95174.0,95171.0,0.0021708]
[1735478081355,2.678,95174.0,95171.0,0.0001708]
[1735478081675,1.589,95174.0,95171.0,0.0021708]
[1735478082005,1.479,95174.0,95171.0,0.0021708]
[1735478082154,1.581,95174.0,95171.0,0.0051708]
[1735478082357,1.011,95174.0,95171.0,0.0051708]
[1735478082561,1.011,95174.0,95171.0,0.0021708]
[1735478082801,1.012,95174.0,95171.0,0.0051708]
[1735478083011,1.079,95173.0,95171.0,0.0051708]
[1735478083148,1.03284829,95173.0,95171.0,0.0051708]
[1735478083350,0.809,95172.0,95171.0,0.0051708]
[1735478083549,0.78285051,95172.0,95171.0,0.0051708]
[1735478083770,0.78285051,95172.0,95171.0,0.0031708]
[1735478084851,0.78285051,95172.0,95171.0,0.0001708]
[1735478085123,0.78285051,95172.0,95171.0,0.0031708]
[1735478085662,0.78285051,95172.0,95171.0,0.0061708]
[1735478085977,0.78285051,95172.0,95171.0,0.0031708]
[1735478086561,0.78385051,95172.0,95171.0,0.0061708]
[1735478087143,0.80033692,95172.0,95171.0,0.0061708]
[1735478089450,0.02133692,95172.0,95171.0,0.0061708]
[1735478092152,0.02133692,95172.0,95171.0,0.02127637]
[1735478092704,0.01748641,95172.0,95171.0,0.02127637]
[1735478094454,0.02242815,95172.0,95171.0,0.02127637]
[1735478094934,0.25910566,95172.0,95171.0,0.02127637]
[1735478096273,0.25910566,95172.0,95171.0,0.03660992]
[1735478096453,0.24261925,95172.0,95171.0,0.03660992]
[1735478097222,0.00594174,95172.0,95171.0,0.03660992]
[1735478097419,0.00594174,95172.0,95171.0,0.10237637]
[1735478098325,0.00594174,95172.0,95171.0,0.14507637]
[1735478098519,0.00211013,95172.0,95171.0,0.14207637]
[1735478098818,8.54e-05,95177.0,95176.0,0.01510557]
[1735478099048,8.54e-05,95177.0,95176.0,0.09620557]
[1735478099248,0.00506444,95177.0,95176.0,0.11041321]
[1735478099486,0.02154848,95177.0,95176.0,0.09520557]
[1735478099666,0.02154848,95177.0,95176.0,0.09420557]
[1735478100068,0.02254848,95177.0,95176.0,0.10220557]
[1735478100448,0.02254848,95177.0,95176.0,0.09920557]
[1735478101034,0.02154848,95177.0,95176.0,0.09420557]
[1735478101508,0.02154848,95177.0,95176.0,0.09920557]
[1735478101857,4.63570947,95180.0,95176.0,0.10820557]
[1735478102068,0.001,95177.0,95176.0,0.10820557]
[1735478102283,0.01648408,95177.0,95176.0,0.01810557]
[1735478102672,0.01648408,95177.0,95176.0,0.02210557]
[1735478102673,0.01748408,95177.0,95176.0,0.02210557]
[1735478103103,0.01748408,95177.0,95176.0,0.04211801]
[1735478103335,0.01648408,95177.0,95176.0,0.03311801]
[1735478103543,0.01648408,95177.0,95176.0,0.02811801]
[1735478103692,0.001,95177.0,95176.0,0.03711801]
[1735478103901,0.001,95177.0,95176.0,0.04111801]
[1735478104364,0.001,95177.0,95176.0,0.02210557]
[1735478104730,0.001,95177.0,95176.0,0.02610557]
[1735478105620,4.63570947,95180.0,95176.0,0.01710557]
[1735478106151,0.001,95177.0,95176.0,0.02010557]
[1735478106322,0.001,95177.0,95176.0,0.01310557]
[1735478106571,0.002,95177.0,95176.0,0.02410557]
[1735478106792,0.001,95177.0,95176.0,0.01710557]
[1735478106979,0.01748416,95177.0,95176.0,0.01310557]
[1735478107177,0.01748416,95177.0,95176.0,0.01910557]
[1735478107382,0.01648416,95177.0,95176.0,0.01710557]
[1735478107833,0.01648416,95177.0,95176.0,0.01310557]
[1735478108044,0.01648416,95177.0,95176.0,0.01710557]
[1735478108887,0.01648416,95177.0,95176.0,0.02410557]
[1735478109118,0.01748416,95177.0,95176.0,0.02410557]
[1735478111289,0.01748416,95177.0,95176.0,0.02427637]
[1735478114473,0.01748416,95177.0,95176.0,0.02027637]
[1735478114688,0.01748416,95177.0,95176.0,0.02527637]
[1735478115496,0.01648416,95177.0,95176.0,0.01827637]
[1735478115861,0.01748416,95177.0,95176.0,0.02527637]
[1735478121049,0.001,95177.0,95176.0,0.10807637]
[1735478121260,0.001,95177.0,95176.0,0.11900615]
[1735478124045,0.01748413,95177.0,95176.0,0.11900615]
[1735478125474,0.01748413,95177.0,95176.0,0.10807637]
[1735478128887,0.01748413,95177.0,95176.0,0.02527637]
[1735478132404,0.01648413,95177.0,95176.0,0.01827637]
[1735478132749,0.01748413,95177.0,95176.0,0.02027637]
[1735478133131,0.01748413,95177.0,95176.0,0.02427637]
[1735478134186,0.01748413,95177.0,95176.0,0.02027637]
[1735478134370,0.01748413,95177.0,95176.0,0.02427637]
[1735478134964,0.01748413,95177.0,95176.0,0.01727637]
[1735478135169,0.01648413,95177.0,95176.0,0.01727637]
[1735478135586,0.01648413,95177.0,95176.0,0.02527637]
[1735478138969,4.82515883,95180.0,95176.0,0.02527637]
[1735478139156,0.18936396,95179.0,95176.0,0.02527637]
[1735478139374,0.18936396,95179.0,95178.0,0.01310557]
[1735478140225,4.87247238,95180.0,95178.0,0.01310557]
[1735478140429,4.87247238,95180.0,95179.0,0.01310557]
[1735478140629,4.87347238,95180.0,95179.0,0.01310557]
[1735478141656,4.87347238,95180.0,95179.0,0.01710557]
[1735478141914,4.63579487,95180.0,95179.0,0.01710557]
[1735478142096,4.6522795,95180.0,95179.0,0.01710557]
[1735478142315,4.6522795,95180.0,95179.0,0.01610557]
[1735478142959,4.6532795,95180.0,95179.0,0.02410557]
[1735478143159,4.6532795,95180.0,95179.0,0.01210557]
[1735478143400,4.6532795,95180.0,95179.0,0.02110557]
[1735478143628,4.6542795,95180.0,95179.0,0.02110557]
[1735478145170,4.6532795,95180.0,95179.0,0.02110557]
[1735478145309,4.63579487,95180.0,95179.0,0.01510557]
[1735478145522,4.63679487,95180.0,95179.0,0.02210557]
[1735478146593,4.63679487,95180.0,95179.0,0.01910557]
[1735478146887,4.63679487,95180.0,95179.0,0.02210557]
[1735478148606,4.65327902,95180.0,95179.0,0.02210557]
[1735478150138,4.65327902,95180.0,95179.0,0.01910557]
[1735478150363,4.65327902,95180.0,95179.0,0.01210557]
[1735478150498,4.65227902,95180.0,95179.0,0.01510557]
[1735478152571,4.65327902,95180.0,95179.0,0.02310557]
[1735478153267,4.89050484,95180.0,95179.0,0.02310557]
[1735478153764,4.87402069,95180.0,95179.0,0.02310557]
[1735478156318,4.63679487,95180.0,95179.0,0.02310557]
[1735478157110,4.65327902,95180.0,95179.0,0.02310557]
[1735478158996,4.65327902,95180.0,95179.0,0.02327637]
[1735478160246,4.89050484,95180.0,95179.0,0.02327637]
[1735478161208,4.65327902,95180.0,95179.0,0.02327637]
[1735478166847,4.63679487,95180.0,95179.0,0.02327637]
[1735478170129,4.65327893,95180.0,95179.0,0.02327637]
[1735478173751,4.63679487,95180.0,95179.0,0.02327637]
[1735478177255,4.65327902,95180.0,95179.0,0.02327637]
[1735478180123,4.65798336,95180.0,95179.0,0.02327637]
[1735478183752,4.64149921,95180.0,95179.0,0.02327637]
[1735478186491,4.71789921,95180.0,95179.0,0.0111708]
[1735478186976,4.76319921,95180.0,95179.0,0.0111708]
[1735478187178,9.40516921,95180.0,95179.0,0.0111708]
[1735478187408,9.42494374,95180.0,95179.0,0.00021105]
[1735478187861,9.42394374,95180.0,95179.0,0.0001708]
[1735478188081,9.33033649,95180.0,95176.0,0.0001708]
[1735478188272,4.76367,95179.0,95176.0,0.0001708]
[1735478188575,4.64197,95178.0,95176.0,0.0001708]
[1735478188789,0.1217,95177.0,95176.0,0.0001708]
[1735478188984,4.79046226,95177.0,95176.0,0.0001708]
[1735478189613,4.81023958,95177.0,95176.0,0.0001708]
[1735478190305,4.81223958,95177.0,95176.0,0.0001708]
[1735478190793,4.81023958,95177.0,95176.0,0.0001708]
[1735478190959,4.81323958,95177.0,95176.0,0.0001708]
[1735478191495,4.81923958,95177.0,95176.0,0.0011708]
[1735478191815,4.82296883,95177.0,95176.0,0.0011708]
[1735478193038,5.14235804,95177.0,95176.0,0.0011708]
[1735478193870,4.82296883,95177.0,95176.0,0.0011708]
[1735478194312,4.79617657,95177.0,95176.0,0.0011708]
[1735478194550,3.01620657,95177.0,95176.0,0.0011708]
[1735478195238,2.99642925,95177.0,95176.0,0.0011708]
[1735478197683,2.99796572,95177.0,95176.0,0.0011708]
[1735478198191,3.01445238,95177.0,95176.0,0.0011708]
[1735478198840,3.03422974,95177.0,95176.0,0.0011708]
[1735478205403,3.03122974,95177.0,95176.0,0.0011708]
[1735478205659,3.03322974,95177.0,95176.0,0.0011708]
[1735478206107,3.03122974,95177.0,95176.0,0.0011708]
[1735478206512,3.31662056,95177.0,95176.0,0.0011708]
[1735478207806,3.31062056,95177.0,95176.0,0.0001708]
[1735478208022,3.03222974,95177.0,95176.0,0.0001708]
[1735478208495,3.02522974,95177.0,95176.0,0.0001708]
[1735478208755,3.03022974,95177.0,95176.0,0.0001708]
[1735478209284,3.03222974,95177.0,95176.0,0.0001708]
[1735478210001,3.03022974,95177.0,95176.0,0.0001708]
[1735478210253,3.03222974,95177.0,95176.0,0.0001708]
[1735478214945,0.15374308,95177.0,95176.0,0.0001708]
[1735478215161,4.79571308,95177.0,95176.0,0.0001708]
[1735478215364,0.56304308,95177.0,95176.0,0.0001708]
[1735478216363,0.54326572,95177.0,95176.0,0.0001708]
[1735478216527,0.54126572,95177.0,95176.0,0.0001708]
[1735478217354,0.53626572,95177.0,95176.0,0.0001708]
[1735478217567,0.53626572,95177.0,95176.0,0.0011708]
[1735478217764,0.00526572,95177.0,95176.0,0.0011708]
[1735478217966,0.00526572,95177.0,95176.0,0.01227637]
[1735478218167,0.0217521,95177.0,95176.0,0.09177637]
[1735478218408,0.0217521,95177.0,95176.0,0.09277637]
[1735478218593,0.0227521,95177.0,95176.0,0.09277637]
[1735478218830,0.16446625,95177.0,95176.0,0.09277637]
[1735478219156,0.16346625,95177.0,95176.0,0.09177637]
[1735478219492,0.16346625,95177.0,95176.0,0.09277637]
[1735478219691,0.0217521,95177.0,95176.0,0.09277637]
[1735478219958,0.0217521,95177.0,95176.0,0.09177637]
[1735478220607,0.0227521,95177.0,95176.0,0.09677637]
[1735478220839,0.0227521,95177.0,95176.0,0.14397637]
[1735478221419,0.0227521,95177.0,95176.0,0.14697637]
[1735478221614,0.0227521,95177.0,95176.0,0.16169109]
[1735478221805,0.0227521,95177.0,95176.0,0.14697637]
[1735478223604,0.00626572,95177.0,95176.0,0.14697637]
[1735478225460,0.001,95177.0,95176.0,0.14697637]
[1735478226880,0.01748368,95177.0,95176.0,0.14697637]
[1735478232339,0.01748368,95177.0,95176.0,0.02027637]
[1735478232704,0.001,95177.0,95176.0,0.0081708]
[1735478233059,0.001,95177.0,95176.0,0.02027637]
[1735478236014,0.01748488,95177.0,95176.0,0.02027637]
[1735478236213,4.44270894,95180.0,95176.0,0.02027637]
[1735478237280,4.44270894,95180.0,95176.0,0.01727637]
[1735478237656,4.44270894,95180.0,95176.0,0.01927637]
[1735478237872,4.44270894,95180.0,95176.0,0.01427637]
[1735478238341,4.44270894,95180.0,95176.0,0.01827637]
[1735478238948,4.44270894,95180.0,95176.0,0.01427637]
[1735478239342,4.44270894,95180.0,95176.0,0.01727637]
[1735478239686,4.45919397,95180.0,95176.0,0.01427637]
[1735478240332,4.45919397,95180.0,95176.0,0.01227637]
[1735478240885,4.45919397,95180.0,95176.0,0.01327637]
[1735478241140,4.45919397,95180.0,95176.0,0.01627637]
[1735478241640,4.45919397,95180.0,95176.0,0.01527637]
[1735478241890,4.45919397,95180.0,95176.0,0.01627637]
[1735478243683,4.44270894,95180.0,95176.0,0.01627637]
[1735478246257,4.44270894,95180.0,95179.0,0.01210557]
[1735478247079,4.45919398,95180.0,95179.0,0.01210557]
[1735478248086,4.45919398,95180.0,95179.0,0.01610557]
[1735478248294,4.45919398,95180.0,95179.0,0.01310557]
[1735478248616,4.45919398,95180.0,95179.0,0.01610557]
[1735478249072,4.45919398,95180.0,95179.0,0.01210557]
[1735478249251,4.45919398,95180.0,95179.0,0.01410557]
[1735478249467,4.45919398,95180.0,95179.0,0.01810557]
[1735478250932,4.45919398,95180.0,95179.0,0.01410557]
[1735478251175,4.45919398,95180.0,95179.0,0.01810557]
[1735478251433,4.45919398,95180.0,95179.0,0.01610557]
[1735478251889,4.45919398,95180.0,95179.0,0.01810557]
[1735478253944,4.44270894,95180.0,95179.0,0.01610557]
[1735478254516,4.44270894,95180.0,95179.0,0.01710557]
[1735478254988,4.44270894,95180.0,95179.0,0.01610557]
[1735478255411,4.44270894,95180.0,95179.0,0.01810557]
[1735478263480,4.67886966,95180.0,95179.0,0.01810557]
[1735478263942,4.67886966,95180.0,95179.0,0.01827637]
[1735478264482,4.44270894,95180.0,95179.0,0.01827637]
[1735478268218,4.45919395,95180.0,95179.0,0.01827637]
[1735478272365,4.44270894,95180.0,95179.0,0.01827637]
[1735478282273,4.459194,95180.0,95179.0,0.01827637]
[1735478302050,4.44270894,95180.0,95179.0,0.01827637]
[1735478302896,4.44270894,95180.0,95179.0,0.01427637]
[1735478303328,4.44270894,95180.0,95179.0,0.01227637]
[1735478303662,4.44270894,95180.0,95179.0,0.01327637]
[1735478304036,4.44270894,95180.0,95179.0,0.01227637]
[1735478304234,4.44270894,95180.0,95179.0,0.01819109]
[1735478304440,4.44270894,95180.0,95179.0,0.01227637]
[1735478304650,4.44270894,95180.0,95179.0,0.01527637]
[1735478304906,4.44270894,95180.0,95179.0,0.01827637]
[1735478305202,4.44270894,95180.0,95179.0,0.01527637]
[1735478305407,4.45919311,95180.0,95179.0,0.01527637]
[1735478305617,4.69636444,95180.0,95179.0,0.02127637]
[1735478306216,4.69136444,95180.0,95179.0,0.02127637]
[1735478306565,4.67488027,95180.0,95179.0,0.02127637]
[1735478307271,4.67488027,95180.0,95179.0,0.02809109]
[1735478307679,4.43770894,95180.0,95179.0,0.02809109]
[1735478309554,4.45419311,95180.0,95179.0,0.02809109]
[1735478313459,4.43770894,95180.0,95179.0,0.02809109]
[1735478317020,4.45419245,95180.0,95179.0,0.30847741]
[1735478320094,4.43770894,95180.0,95179.0,0.30847741]
[1735478321182,4.4541921,95180.0,95179.0,0.30847741]
[1735478324620,4.4541921,95180.0,95179.0,0.30547741]
[1735478324831,4.4541921,95180.0,95179.0,0.29947741]
[1735478325034,4.4541921,95180.0,95179.0,0.30347741]
[1735478325245,4.4551921,95180.0,95179.0,0.31247741]
[1735478325449,4.4551921,95180.0,95179.0,0.30847741]
[1735478325835,4.4561921,95180.0,95179.0,0.31547741]
[1735478326450,4.4551921,95180.0,95179.0,0.30647741]
[1735478326869,4.4561921,95180.0,95179.0,0.31547741]
[1735478327239,4.4561921,95180.0,95179.0,0.30847741]
[1735478327444,4.4551921,95180.0,95179.0,0.30847741]
[1735478327652,4.4561921,95180.0,95179.0,0.31547741]
[1735478327773,4.4561921,95180.0,95179.0,0.30866269]
[1735478327985,4.4561921,95180.0,95179.0,0.30166269]
[1735478328194,4.4551921,95180.0,95179.0,0.30166269]
[1735478328919,4.4561921,95180.0,95179.0,0.30866269]
[1735478331459,4.43970894,95180.0,95179.0,0.30866269]
[1735478332375,4.51970894,95180.0,95179.0,0.30866269]
[1735478333845,4.51970894,95180.0,95179.0,0.23226269]
[1735478334051,4.51970894,95180.0,95179.0,0.13226269]
[1735478334464,4.53619204,95180.0,95179.0,0.13226269]
[1735478334685,4.53619204,95180.0,95179.0,0.15550604]
[1735478334904,4.53619204,95180.0,95179.0,0.13226269]
[1735478335313,4.53519204,95180.0,95179.0,0.12526269]
[1735478335734,4.51870894,95180.0,95179.0,0.12526269]
[1735478335915,4.51970894,95180.0,95179.0,0.13126269]
[1735478336224,4.51870894,95180.0,95179.0,0.12226269]
[1735478336381,4.51970894,95180.0,95179.0,0.13126269]
[1735478339098,4.53619209,95180.0,95179.0,0.13126269]
[1735478339329,4.61219209,95180.0,95179.0,0.13126269]
[1735478340009,4.59570894,95180.0,95179.0,0.13126269]
[1735478340327,4.59570894,95180.0,95179.0,0.12226269]
[1735478340328,4.59470894,95180.0,95179.0,0.12226269]
[1735478340537,4.59570894,95180.0,95179.0,0.13126269]
[1735478341792,4.59470894,95180.0,95179.0,0.12526269]
[1735478342177,4.59470894,95180.0,95179.0,0.13026269]
[1735478342579,4.59470894,95180.0,95179.0,0.12526269]
[1735478342792,4.59470894,95180.0,95179.0,0.13026269]
[1735478343199,4.6111926,95180.0,95179.0,0.13026269]
[1735478344188,4.59470894,95180.0,95179.0,0.13026269]
[1735478346671,4.51870894,95180.0,95179.0,0.13026269]
[1735478347706,4.53519228,95180.0,95179.0,0.13026269]
[1735478348367,4.53023228,95180.0,95179.0,0.13026269]
[1735478349359,4.53023228,95180.0,95179.0,0.23026269]
[1735478349555,4.53023228,95180.0,95179.0,0.25330604]
[1735478353646,4.53023228,95180.0,95179.0,0.23026269]
[1735478355104,4.51374894,95180.0,95179.0,0.23026269]
[1735478357558,4.51374894,95180.0,95179.0,0.30756269]
[1735478357869,4.34065313,95180.0,95179.0,0.30756269]
[1735478360073,4.34065313,95180.0,95179.0,0.40756269]
[1735478360456,4.34065313,95180.0,95179.0,0.50227604]
[1735478360832,4.34065313,95180.0,95179.0,0.49727604]
[1735478361227,4.34165313,95180.0,95179.0,0.50427604]
[1735478361543,4.34165313,95180.0,95179.0,0.49527604]
[1735478361544,4.34065313,95180.0,95179.0,0.49527604]
[1735478361782,4.34165313,95180.0,95179.0,0.50427604]
[1735478361988,4.34165313,95180.0,95179.0,0.49527604]
[1735478362101,4.34165313,95180.0,95179.0,0.50427604]
[1735478362305,4.34265313,95180.0,95179.0,0.50427604]
[1735478362549,4.34165313,95180.0,95179.0,0.49727604]
[1735478362950,4.34265313,95180.0,95179.0,0.50427604]
[1735478363346,4.26265313,95180.0,95179.0,0.50427604]
[1735478365072,4.26065313,95180.0,95179.0,0.49527604]
[1735478365500,4.26065313,95180.0,95179.0,0.50427604]
[1735478365724,4.25965313,95180.0,95179.0,0.48827604]
[1735478365870,4.25965313,95180.0,95179.0,0.49727604]
[1735478366303,4.25965313,95180.0,95179.0,0.50427604]
[1735478366785,4.25965313,95180.0,95179.0,0.49727604]
[1735478367141,4.25965313,95180.0,95179.0,0.50427604]
[1735478367344,4.25965313,95180.0,95179.0,0.49527604]
[1735478367659,4.25965313,95180.0,95179.0,0.50427604]
[1735478367896,4.25965313,95180.0,95179.0,0.49527604]
[1735478368254,4.25965313,95180.0,95179.0,0.50427604]
[1735478372511,4.27613455,95180.0,95179.0,0.50427604]
[1735478373562,4.25965313,95180.0,95179.0,0.50427604]
[1735478375055,4.25965313,95180.0,95179.0,0.42697604]
[1735478376012,4.25965313,95180.0,95179.0,0.33226269]
[1735478382207,4.25965313,95180.0,95179.0,0.37437269]
[1735478382620,4.25965313,95180.0,95179.0,0.33226269]
[1735478392799,4.27613472,95180.0,95179.0,0.33226269]
[1735478393534,4.25965313,95180.0,95179.0,0.33226269]
[1735478393753,4.25965313,95180.0,95179.0,0.43624901]
[1735478396788,4.25965313,95180.0,95179.0,0.42924901]
[1735478397085,4.25965313,95180.0,95179.0,0.42824901]
[1735478397321,4.25965313,95180.0,95179.0,0.43724901]
[1735478397613,4.25965313,95180.0,95179.0,0.31626269]
[1735478397940,4.25965313,95180.0,95179.0,0.33326269]
[1735478398197,4.27613472,95180.0,95179.0,0.33326269]
[1735478400873,4.25965313,95180.0,95179.0,0.33326269]